[Event "Titled Tuesday Blitz March 14 Early 2023"]
[White "Rosenberg, Evan S"]
[Black "Fabris, Alberto"]
[WhiteFideId "2019299"]
[BlackFideId "801348"]
[WhiteElo "2424"]
[BlackElo "2180"]
[Result "0-1"]
[Round "03"]
[TimeControl "180+2"]
[Date "2023.03.14"]
[WhiteClock "0:00:09"]
[BlackClock "0:00:48"]

1. d4 {[%clk 0:03:00]}  Nf6 {[%clk 0:02:59]} 2. Nf3 {[%clk 0:02:59]}  e6 {[%clk 0:03:00]} 3. g3 {[%clk 0:02:59]}  b6 {[%clk 0:02:59]} 4. Bg2 {[%clk 0:02:59]}  Bb7 {[%clk 0:03:00]} 5. O-O {[%clk 0:02:59]}  Be7 {[%clk 0:03:00]} 6. c4 {[%clk 0:03:00]}  O-O {[%clk 0:03:00]} 7. Nc3 {[%clk 0:03:01]}  d5 {[%clk 0:02:59]} 8. cxd5 {[%clk 0:03:01]}  Nxd5 {[%clk 0:02:57]} 9. Qc2 {[%clk 0:02:59]}  Nd7 {[%clk 0:02:53]} 10. Rd1 {[%clk 0:02:53]}  Qc8 {[%clk 0:02:48]} 11. Nxd5 {[%clk 0:02:50]}  exd5 {[%clk 0:02:44]} 12. Bh3 {[%clk 0:02:46]}  Qd8 {[%clk 0:02:39]} 13. Bf4 {[%clk 0:02:36]}  c5 {[%clk 0:02:36]} 14. Rac1 {[%clk 0:02:32]}  c4 {[%clk 0:02:32]} 15. Qf5 {[%clk 0:02:29]}  Nf6 {[%clk 0:02:29]} 16. Bg2 {[%clk 0:02:12]}  b5 {[%clk 0:02:22]} 17. Ne5 {[%clk 0:02:09]}  a5 {[%clk 0:02:14]} 18. b3 {[%clk 0:02:06]}  Rc8 {[%clk 0:02:11]} 19. a4 {[%clk 0:02:04]}  cxb3 {[%clk 0:02:06]} 20. axb5 {[%clk 0:02:01]}  Qb6 {[%clk 0:01:58]} 21. Nc6 {[%clk 0:01:47]}  Bxc6 {[%clk 0:01:49]} 22. bxc6 {[%clk 0:01:47]}  Rxc6 {[%clk 0:01:45]} 23. Bxd5 {[%clk 0:01:32]}  Rxc1 {[%clk 0:01:44]} 24. Rxc1 {[%clk 0:01:16]}  Nxd5 {[%clk 0:01:32]} 25. Qxd5 {[%clk 0:01:14]}  b2 {[%clk 0:01:26]} 26. Rb1 {[%clk 0:01:13]}  a4 {[%clk 0:01:26]} 27. Qa2 {[%clk 0:01:07]}  a3 {[%clk 0:01:26]} 28. d5 {[%clk 0:01:06]}  Bd6 {[%clk 0:01:22]} 29. e4 {[%clk 0:00:34]}  Bxf4 {[%clk 0:01:20]} 30. gxf4 {[%clk 0:00:34]}  Qb4 {[%clk 0:01:20]} 31. e5 {[%clk 0:00:24]}  Rc8 {[%clk 0:01:11]} 32. d6 {[%clk 0:00:23]}  Rc1+ {[%clk 0:01:08]} 33. Kg2 {[%clk 0:00:23]}  Qe4+ {[%clk 0:01:07]} 34. Kg3 {[%clk 0:00:12]}  Qxb1 {[%clk 0:00:55]} 35. d7 {[%clk 0:00:10]}  Qd3+ {[%clk 0:00:49]} 36. f3 {[%clk 0:00:09]}  Qxd7 {[%clk 0:00:48]} 0-1


[Site "https://www.chess.com"]

[Event "Titled Tuesday Blitz March 14 Early 2023"]
[White "Hoffmann, Asa"]
[Black "Aanan, Shafiuddin"]
[WhiteFideId "2001470"]
[BlackFideId "3242633"]
[WhiteElo "2117"]
[BlackElo "1648"]
[Result "1-0"]
[Round "03"]
[TimeControl "180+2"]
[Date "2023.03.14"]
[WhiteClock "0:01:02"]
[BlackClock "0:00:04"]

1. d4 {[%clk 0:02:54]}  Nf6 {[%clk 0:02:59]} 2. Bg5 {[%clk 0:02:49]}  Ne4 {[%clk 0:02:57]} 3. Bf4 {[%clk 0:02:48]}  d5 {[%clk 0:02:54]} 4. f3 {[%clk 0:02:48]}  Nf6 {[%clk 0:02:35]} 5. e4 {[%clk 0:02:47]}  e6 {[%clk 0:02:23]} 6. e5 {[%clk 0:02:47]}  Nfd7 {[%clk 0:02:23]} 7. Be3 {[%clk 0:02:47]}  c5 {[%clk 0:02:23]} 8. c3 {[%clk 0:02:47]}  Nc6 {[%clk 0:02:20]} 9. f4 {[%clk 0:02:46]}  Qb6 {[%clk 0:02:05]} 10. Qd2 {[%clk 0:02:46]}  g6 {[%clk 0:01:25]} 11. Nf3 {[%clk 0:02:45]}  cxd4 {[%clk 0:01:20]} 12. cxd4 {[%clk 0:02:45]}  Bg7 {[%clk 0:01:16]} 13. Nc3 {[%clk 0:02:44]}  a6 {[%clk 0:01:08]} 14. Be2 {[%clk 0:02:43]}  Ne7 {[%clk 0:01:07]} 15. O-O {[%clk 0:02:41]}  Nf5 {[%clk 0:01:07]} 16. Bf2 {[%clk 0:02:41]}  h5 {[%clk 0:01:07]} 17. g3 {[%clk 0:02:35]}  Qd8 {[%clk 0:01:03]} 18. Kg2 {[%clk 0:02:31]}  b5 {[%clk 0:01:01]} 19. h3 {[%clk 0:02:27]}  Nb6 {[%clk 0:00:47]} 20. b3 {[%clk 0:02:27]}  Bd7 {[%clk 0:00:44]} 21. Rac1 {[%clk 0:02:26]}  Rc8 {[%clk 0:00:43]} 22. g4 {[%clk 0:02:18]}  hxg4 {[%clk 0:00:40]} 23. hxg4 {[%clk 0:02:18]}  Nh6 {[%clk 0:00:33]} 24. Ng5 {[%clk 0:02:15]}  f6 {[%clk 0:00:31]} 25. exf6 {[%clk 0:01:59]}  Qxf6 {[%clk 0:00:32]} 26. Be3 {[%clk 0:01:39]}  Nf7 {[%clk 0:00:31]} 27. Nf3 {[%clk 0:01:33]}  Bc6 {[%clk 0:00:23]} 28. Rh1 {[%clk 0:01:32]}  Nd7 {[%clk 0:00:21]} 29. Bd3 {[%clk 0:01:20]}  b4 {[%clk 0:00:09]} 30. Ne2 {[%clk 0:01:19]}  Rxh1 {[%clk 0:00:08]} 31. Rxh1 {[%clk 0:01:18]}  Nf8 {[%clk 0:00:08]} 32. Ne5 {[%clk 0:01:11]}  Nxe5 {[%clk 0:00:07]} 33. fxe5 {[%clk 0:01:11]}  Qe7 {[%clk 0:00:06]} 34. Bg5 {[%clk 0:01:08]}  Qb7 {[%clk 0:00:04]} 35. Nf4 {[%clk 0:01:07]}  Bb5 {[%clk 0:00:04]} 36. Qxb4 {[%clk 0:01:02]} 1-0


[Site "https://www.chess.com"]

[Event "Titled Tuesday Blitz March 14 Early 2023"]
[White "Pourkashiyan, Atousa"]
[Black "Quispe Santacruz, Javier"]
[WhiteFideId "12502014"]
[BlackFideId "3800920"]
[WhiteElo "2228"]
[BlackElo "1875"]
[Result "0-1"]
[Round "03"]
[TimeControl "180+2"]
[Date "2023.03.14"]
[WhiteClock "0:00:14"]
[BlackClock "0:01:08"]

1. e4 {[%clk 0:02:55]}  c5 {[%clk 0:02:59]} 2. Nf3 {[%clk 0:02:54]}  d6 {[%clk 0:02:59]} 3. d4 {[%clk 0:02:43]}  cxd4 {[%clk 0:02:58]} 4. Nxd4 {[%clk 0:02:44]}  Nf6 {[%clk 0:02:58]} 5. Nc3 {[%clk 0:02:44]}  g6 {[%clk 0:02:57]} 6. Be3 {[%clk 0:02:41]}  Bg7 {[%clk 0:02:57]} 7. f3 {[%clk 0:02:41]}  O-O {[%clk 0:02:56]} 8. Qd2 {[%clk 0:02:41]}  Nc6 {[%clk 0:02:55]} 9. O-O-O {[%clk 0:02:41]}  d5 {[%clk 0:02:54]} 10. exd5 {[%clk 0:02:37]}  Nxd5 {[%clk 0:02:53]} 11. Nxc6 {[%clk 0:02:38]}  bxc6 {[%clk 0:02:53]} 12. Bd4 {[%clk 0:02:39]}  Bxd4 {[%clk 0:02:51]} 13. Qxd4 {[%clk 0:02:39]}  Qb6 {[%clk 0:02:52]} 14. Na4 {[%clk 0:02:36]}  Qa5 {[%clk 0:02:52]} 15. b3 {[%clk 0:02:13]}  Be6 {[%clk 0:02:34]} 16. Qc5 {[%clk 0:01:54]}  Qc7 {[%clk 0:02:29]} 17. Bc4 {[%clk 0:01:45]}  Rfd8 {[%clk 0:02:14]} 18. Kb1 {[%clk 0:01:38]}  Rab8 {[%clk 0:02:09]} 19. h4 {[%clk 0:01:35]}  h5 {[%clk 0:02:07]} 20. g4 {[%clk 0:01:33]}  hxg4 {[%clk 0:02:01]} 21. h5 {[%clk 0:01:33]}  g5 {[%clk 0:01:59]} 22. h6 {[%clk 0:01:33]}  gxf3 {[%clk 0:01:51]} 23. h7+ {[%clk 0:01:15]}  Kh8 {[%clk 0:01:49]} 24. Rhg1 {[%clk 0:01:01]}  f6 {[%clk 0:01:48]} 25. Qf2 {[%clk 0:00:54]}  g4 {[%clk 0:01:46]} 26. Rde1 {[%clk 0:00:44]}  Bf5 {[%clk 0:01:41]} 27. Bxd5 {[%clk 0:00:29]}  cxd5 {[%clk 0:01:36]} 28. Rc1 {[%clk 0:00:18]}  d4 {[%clk 0:01:29]} 29. Nb2 {[%clk 0:00:17]}  a5 {[%clk 0:01:26]} 30. Nd3 {[%clk 0:00:17]}  a4 {[%clk 0:01:25]} 31. Qh4 {[%clk 0:00:16]}  axb3 {[%clk 0:01:24]} 32. axb3 {[%clk 0:00:15]}  Bxd3 {[%clk 0:01:21]} 33. Qxg4 {[%clk 0:00:14]}  Rxb3+ {[%clk 0:01:19]} 34. Ka2 {[%clk 0:00:15]}  Ra3+ {[%clk 0:01:13]} 35. Kxa3 {[%clk 0:00:15]}  Qc3+ {[%clk 0:01:09]} 36. Ka4 {[%clk 0:00:14]}  Ra8# {[%clk 0:01:08]} 0-1


[Site "https://www.chess.com"]

[Event "Titled Tuesday Blitz March 14 Early 2023"]
[White "Sailer, Mike"]
[Black "Bochnicka, Vladimir"]
[WhiteFideId "2012901"]
[BlackFideId "14943450"]
[WhiteElo "2109"]
[BlackElo "2094"]
[Result "0-1"]
[Round "03"]
[TimeControl "180+2"]
[Date "2023.03.14"]
[WhiteClock "0:01:09"]
[BlackClock "0:01:54"]

1. d4 {[%clk 0:02:58]}  Nf6 {[%clk 0:03:00]} 2. Bg5 {[%clk 0:02:59]}  e6 {[%clk 0:02:59]} 3. Nd2 {[%clk 0:02:58]}  h6 {[%clk 0:02:56]} 4. Bh4 {[%clk 0:02:58]}  c5 {[%clk 0:02:51]} 5. e3 {[%clk 0:02:55]}  d5 {[%clk 0:02:50]} 6. c3 {[%clk 0:02:54]}  Nc6 {[%clk 0:02:49]} 7. Bd3 {[%clk 0:02:55]}  Bd6 {[%clk 0:02:46]} 8. f4 {[%clk 0:02:55]}  O-O {[%clk 0:02:41]} 9. Ngf3 {[%clk 0:02:46]}  b6 {[%clk 0:02:41]} 10. Ne5 {[%clk 0:02:46]}  Bb7 {[%clk 0:02:38]} 11. O-O {[%clk 0:02:46]}  Be7 {[%clk 0:02:36]} 12. Nxc6 {[%clk 0:02:42]}  Bxc6 {[%clk 0:02:36]} 13. Nf3 {[%clk 0:02:43]}  Ne4 {[%clk 0:02:33]} 14. Bxe7 {[%clk 0:02:43]}  Qxe7 {[%clk 0:02:34]} 15. Ne5 {[%clk 0:02:42]}  Bb7 {[%clk 0:02:32]} 16. f5 {[%clk 0:02:36]}  Qg5 {[%clk 0:02:26]} 17. Rf3 {[%clk 0:02:14]}  exf5 {[%clk 0:02:19]} 18. dxc5 {[%clk 0:02:10]}  bxc5 {[%clk 0:02:14]} 19. Qc2 {[%clk 0:01:51]}  Rfe8 {[%clk 0:02:12]} 20. Nd7 {[%clk 0:01:36]}  Rad8 {[%clk 0:02:09]} 21. Bxe4 {[%clk 0:01:30]}  dxe4 {[%clk 0:02:08]} 22. Nxc5 {[%clk 0:01:30]}  exf3 {[%clk 0:02:07]} 23. Nxb7 {[%clk 0:01:31]}  Rd3 {[%clk 0:01:58]} 24. Na5 {[%clk 0:01:10]}  Rdxe3 {[%clk 0:01:55]} 25. Nc4 {[%clk 0:01:09]}  Re1+ {[%clk 0:01:52]} 26. Rxe1 {[%clk 0:01:08]}  Rxe1+ {[%clk 0:01:53]} 27. Kf2 {[%clk 0:01:09]}  Qxg2+ {[%clk 0:01:54]} 28. Kxe1 {[%clk 0:01:09]}  Qxc2 {[%clk 0:01:54]} 0-1


[Site "https://www.chess.com"]

[Event "Titled Tuesday Blitz March 14 Early 2023"]
[White "ritanovikova"]
[Black "littlepillow2010"]
[WhiteElo "2120"]
[BlackElo "2379"]
[Result "0-1"]
[Round "03"]
[TimeControl "180+2"]
[Date "2023.03.14"]
[WhiteClock "0:00:22"]
[BlackClock "0:00:19"]

1. e4 {[%clk 0:02:59]}  c5 {[%clk 0:02:59]} 2. Nc3 {[%clk 0:02:59]}  a6 {[%clk 0:02:59]} 3. d3 {[%clk 0:02:59]}  b5 {[%clk 0:02:59]} 4. g3 {[%clk 0:02:59]}  Bb7 {[%clk 0:03:00]} 5. Bg2 {[%clk 0:02:59]}  e6 {[%clk 0:03:00]} 6. Be3 {[%clk 0:02:59]}  d5 {[%clk 0:02:59]} 7. exd5 {[%clk 0:02:59]}  exd5 {[%clk 0:03:00]} 8. d4 {[%clk 0:02:59]}  c4 {[%clk 0:02:59]} 9. a3 {[%clk 0:02:48]}  Nf6 {[%clk 0:02:58]} 10. h3 {[%clk 0:02:46]}  Be7 {[%clk 0:02:52]} 11. Nge2 {[%clk 0:02:32]}  Nbd7 {[%clk 0:02:51]} 12. Nf4 {[%clk 0:02:31]}  Nb6 {[%clk 0:02:51]} 13. O-O {[%clk 0:02:30]}  O-O {[%clk 0:02:50]} 14. Nh5 {[%clk 0:02:28]}  Qd7 {[%clk 0:02:27]} 15. Nxf6+ {[%clk 0:02:26]}  Bxf6 {[%clk 0:02:28]} 16. Qh5 {[%clk 0:02:22]}  a5 {[%clk 0:02:25]} 17. Qg4 {[%clk 0:02:16]}  Qxg4 {[%clk 0:02:19]} 18. hxg4 {[%clk 0:02:17]}  Bc6 {[%clk 0:02:16]} 19. g5 {[%clk 0:02:14]}  Be7 {[%clk 0:02:14]} 20. Rfe1 {[%clk 0:02:09]}  b4 {[%clk 0:02:11]} 21. Ne2 {[%clk 0:01:57]}  bxa3 {[%clk 0:02:10]} 22. bxa3 {[%clk 0:01:58]}  Na4 {[%clk 0:01:59]} 23. Bd2 {[%clk 0:01:44]}  Rfb8 {[%clk 0:01:46]} 24. Nc3 {[%clk 0:01:40]}  Bxg5 {[%clk 0:01:35]} 25. Bxg5 {[%clk 0:01:25]}  Nxc3 {[%clk 0:01:33]} 26. Bd2 {[%clk 0:01:24]}  Na4 {[%clk 0:01:11]} 27. Rab1 {[%clk 0:01:21]}  Rxb1 {[%clk 0:00:44]} 28. Rxb1 {[%clk 0:01:21]}  c3 {[%clk 0:00:45]} 29. Bf4 {[%clk 0:01:17]}  Re8 {[%clk 0:00:42]} 30. Bf1 {[%clk 0:01:11]}  Nb2 {[%clk 0:00:36]} 31. f3 {[%clk 0:00:56]}  Ba4 {[%clk 0:00:19]} 32. Rc1 {[%clk 0:00:51]}  Re7 {[%clk 0:00:19]} 33. Kf2 {[%clk 0:00:48]}  f6 {[%clk 0:00:19]} 34. g4 {[%clk 0:00:46]}  Kf7 {[%clk 0:00:18]} 35. g5 {[%clk 0:00:36]}  fxg5 {[%clk 0:00:17]} 36. Bxg5 {[%clk 0:00:37]}  Rb7 {[%clk 0:00:18]} 37. Bg2 {[%clk 0:00:34]}  Nc4 {[%clk 0:00:17]} 38. f4 {[%clk 0:00:33]}  Bc6 {[%clk 0:00:14]} 39. Ke2 {[%clk 0:00:29]}  Nxa3 {[%clk 0:00:12]} 40. Kd3 {[%clk 0:00:27]}  Nb5 {[%clk 0:00:12]} 41. f5 {[%clk 0:00:24]}  a4 {[%clk 0:00:12]} 42. Ra1 {[%clk 0:00:24]}  a3 {[%clk 0:00:11]} 43. Bc1 {[%clk 0:00:24]}  Ra7 {[%clk 0:00:12]} 44. Ra2 {[%clk 0:00:23]}  Kf6 {[%clk 0:00:11]} 45. Bh3 {[%clk 0:00:22]}  Bd7 {[%clk 0:00:10]} 46. Ke2 {[%clk 0:00:21]}  Bxf5 {[%clk 0:00:09]} 47. Bxf5 {[%clk 0:00:21]}  Kxf5 {[%clk 0:00:10]} 48. Kd3 {[%clk 0:00:21]}  g5 {[%clk 0:00:10]} 49. Ke2 {[%clk 0:00:21]}  h5 {[%clk 0:00:11]} 50. Kf3 {[%clk 0:00:21]}  Nxd4+ {[%clk 0:00:10]} 51. Kg2 {[%clk 0:00:21]}  Ne6 {[%clk 0:00:09]} 52. Rxa3 {[%clk 0:00:21]}  Rxa3 {[%clk 0:00:10]} 53. Bxa3 {[%clk 0:00:22]}  d4 {[%clk 0:00:09]} 54. Bc1 {[%clk 0:00:20]}  d3 {[%clk 0:00:07]} 55. cxd3 {[%clk 0:00:20]}  Nc5 {[%clk 0:00:08]} 56. d4 {[%clk 0:00:20]}  Nb3 {[%clk 0:00:08]} 57. Be3 {[%clk 0:00:18]}  c2 {[%clk 0:00:08]} 58. d5 {[%clk 0:00:18]}  c1=Q {[%clk 0:00:09]} 59. Bxc1 {[%clk 0:00:19]}  Nxc1 {[%clk 0:00:10]} 60. d6 {[%clk 0:00:19]}  Ke6 {[%clk 0:00:11]} 61. Kf1 {[%clk 0:00:18]}  Kd7 {[%clk 0:00:11]} 62. Ke1 {[%clk 0:00:19]}  Kxd6 {[%clk 0:00:12]} 63. Kd1 {[%clk 0:00:19]}  Nb3 {[%clk 0:00:13]} 64. Kc2 {[%clk 0:00:19]}  Nc5 {[%clk 0:00:14]} 65. Kd2 {[%clk 0:00:19]}  Ne6 {[%clk 0:00:15]} 66. Ke3 {[%clk 0:00:20]}  Ke5 {[%clk 0:00:16]} 67. Kf2 {[%clk 0:00:21]}  g4 {[%clk 0:00:17]} 68. Kg3 {[%clk 0:00:22]}  Kf5 {[%clk 0:00:17]} 69. Kh4 {[%clk 0:00:22]}  Kf4 {[%clk 0:00:17]} 70. Kxh5 {[%clk 0:00:21]}  g3 {[%clk 0:00:17]} 71. Kh4 {[%clk 0:00:21]}  g2 {[%clk 0:00:18]} 72. Kh3 {[%clk 0:00:22]}  g1=Q {[%clk 0:00:18]} 73. Kh4 {[%clk 0:00:22]}  Qg4# {[%clk 0:00:19]} 0-1


[Site "https://www.chess.com"]

[Event "Titled Tuesday Blitz March 14 Early 2023"]
[White "Maranhao,Jose Renato Ruiz"]
[Black "Tarasova, Viktoriya"]
[WhiteFideId "2135175"]
[BlackFideId "4175840"]
[WhiteElo "1970"]
[BlackElo "2182"]
[Result "0-1"]
[Round "03"]
[TimeControl "180+2"]
[Date "2023.03.14"]
[WhiteClock "0:00:01"]
[BlackClock "0:00:30"]

1. g3 {[%clk 0:03:00]}  Nf6 {[%clk 0:02:59]} 2. Bg2 {[%clk 0:03:01]}  e5 {[%clk 0:02:58]} 3. b3 {[%clk 0:03:02]}  d5 {[%clk 0:02:59]} 4. Bb2 {[%clk 0:03:03]}  Nc6 {[%clk 0:02:58]} 5. d3 {[%clk 0:03:03]}  Bd6 {[%clk 0:02:58]} 6. e3 {[%clk 0:03:00]}  O-O {[%clk 0:02:58]} 7. Nc3 {[%clk 0:02:58]}  Be6 {[%clk 0:02:58]} 8. Nge2 {[%clk 0:02:58]}  Qd7 {[%clk 0:02:55]} 9. O-O {[%clk 0:02:54]}  a6 {[%clk 0:02:54]} 10. Re1 {[%clk 0:02:53]}  b5 {[%clk 0:02:52]} 11. a3 {[%clk 0:02:50]}  Rad8 {[%clk 0:02:51]} 12. d4 {[%clk 0:02:44]}  e4 {[%clk 0:02:47]} 13. Nb1 {[%clk 0:02:30]}  Ne7 {[%clk 0:02:43]} 14. Nd2 {[%clk 0:02:27]}  Bh3 {[%clk 0:02:33]} 15. Bh1 {[%clk 0:02:25]}  h5 {[%clk 0:02:29]} 16. c4 {[%clk 0:02:21]}  c6 {[%clk 0:02:28]} 17. c5 {[%clk 0:02:13]}  Bc7 {[%clk 0:02:28]} 18. a4 {[%clk 0:02:14]}  b4 {[%clk 0:02:18]} 19. a5 {[%clk 0:02:09]}  Rb8 {[%clk 0:02:17]} 20. Ra4 {[%clk 0:01:59]}  Rb5 {[%clk 0:02:16]} 21. Nf4 {[%clk 0:01:57]}  Bg4 {[%clk 0:02:15]} 22. Qa1 {[%clk 0:01:55]}  h4 {[%clk 0:02:10]} 23. gxh4 {[%clk 0:01:43]}  Bxf4 {[%clk 0:02:07]} 24. exf4 {[%clk 0:01:43]}  Nf5 {[%clk 0:02:08]} 25. f3 {[%clk 0:00:49]}  exf3 {[%clk 0:02:05]} 26. Nxf3 {[%clk 0:00:47]}  Bxf3 {[%clk 0:02:02]} 27. Bxf3 {[%clk 0:00:45]}  Nxh4 {[%clk 0:02:02]} 28. Qd1 {[%clk 0:00:33]}  Qh3 {[%clk 0:01:44]} 29. Re3 {[%clk 0:00:14]}  Rbb8 {[%clk 0:01:24]} 30. Bc1 {[%clk 0:00:14]}  Rfe8 {[%clk 0:01:20]} 31. Rxe8+ {[%clk 0:00:12]}  Rxe8 {[%clk 0:01:19]} 32. Bh1 {[%clk 0:00:05]}  Qc3 {[%clk 0:01:08]} 33. Bd2 {[%clk 0:00:03]}  Qxd4+ {[%clk 0:01:08]} 34. Kf1 {[%clk 0:00:01]}  Nf5 {[%clk 0:00:46]} 35. Rxb4 {[%clk 0:00:02]}  Qd3+ {[%clk 0:00:32]} 36. Kg1 {[%clk 0:00:01]}  Re2 {[%clk 0:00:30]} 0-1


[Site "https://www.chess.com"]

[Event "Titled Tuesday Blitz March 14 Early 2023"]
[White "ArtemDyachuk"]
[Black "Allam, Yara"]
[BlackFideId "10615709"]
[WhiteElo "2366"]
[BlackElo "1758"]
[Result "1-0"]
[Round "03"]
[TimeControl "180+2"]
[Date "2023.03.14"]
[WhiteClock "0:01:23"]
[BlackClock "0:00:23"]

1. e4 {[%clk 0:03:00]}  c5 {[%clk 0:03:00]} 2. Nf3 {[%clk 0:03:01]}  e6 {[%clk 0:03:00]} 3. d4 {[%clk 0:03:02]}  cxd4 {[%clk 0:03:01]} 4. Nxd4 {[%clk 0:03:02]}  a6 {[%clk 0:03:01]} 5. Nc3 {[%clk 0:03:03]}  Qc7 {[%clk 0:03:00]} 6. Bd3 {[%clk 0:03:03]}  Nf6 {[%clk 0:03:00]} 7. O-O {[%clk 0:03:03]}  Be7 {[%clk 0:03:00]} 8. Kh1 {[%clk 0:03:01]}  d6 {[%clk 0:03:01]} 9. f4 {[%clk 0:03:01]}  b5 {[%clk 0:03:01]} 10. Qe1 {[%clk 0:02:53]}  b4 {[%clk 0:02:49]} 11. Na4 {[%clk 0:02:49]}  Qa5 {[%clk 0:02:35]} 12. b3 {[%clk 0:02:48]}  Bd7 {[%clk 0:02:33]} 13. Bb2 {[%clk 0:02:47]}  Bxa4 {[%clk 0:02:25]} 14. bxa4 {[%clk 0:02:48]}  Qb6 {[%clk 0:02:24]} 15. e5 {[%clk 0:02:46]}  Nd5 {[%clk 0:02:11]} 16. f5 {[%clk 0:02:45]}  dxe5 {[%clk 0:01:56]} 17. fxe6 {[%clk 0:02:44]}  exd4 {[%clk 0:01:42]} 18. exf7+ {[%clk 0:02:42]}  Kf8 {[%clk 0:01:43]} 19. Bc4 {[%clk 0:02:32]}  Ne3 {[%clk 0:01:35]} 20. Qe2 {[%clk 0:02:22]}  Nxf1 {[%clk 0:01:32]} 21. Rxf1 {[%clk 0:02:21]}  Nc6 {[%clk 0:01:15]} 22. Qe6 {[%clk 0:02:19]}  Qc7 {[%clk 0:01:07]} 23. Bd5 {[%clk 0:02:11]}  Rc8 {[%clk 0:01:03]} 24. Re1 {[%clk 0:01:59]}  Nd8 {[%clk 0:00:46]} 25. Qe4 {[%clk 0:01:47]}  Qd6 {[%clk 0:00:30]} 26. Qxd4 {[%clk 0:01:25]}  Bf6 {[%clk 0:00:23]} 27. Re8# {[%clk 0:01:23]} 1-0


[Site "https://www.chess.com"]

[Event "Titled Tuesday Blitz March 14 Early 2023"]
[White "Martinez Alcantara, Jose Eduardo"]
[Black "Nakamura, Hikaru"]
[WhiteFideId "3805662"]
[BlackFideId "2016192"]
[WhiteElo "2712"]
[BlackElo "2879"]
[Result "0-1"]
[Round "04"]
[TimeControl "180+2"]
[Date "2023.03.14"]
[WhiteClock "0:00:08"]
[BlackClock "0:00:28"]

1. e4 {[%clk 0:02:57]}  e5 {[%clk 0:02:59]} 2. Nf3 {[%clk 0:02:56]}  Nc6 {[%clk 0:02:58]} 3. Bb5 {[%clk 0:02:56]}  d6 {[%clk 0:02:54]} 4. O-O {[%clk 0:02:53]}  Bd7 {[%clk 0:02:54]} 5. c3 {[%clk 0:02:53]}  a6 {[%clk 0:02:54]} 6. Ba4 {[%clk 0:02:52]}  Nf6 {[%clk 0:02:54]} 7. Re1 {[%clk 0:02:52]}  g6 {[%clk 0:02:54]} 8. h3 {[%clk 0:02:48]}  Bg7 {[%clk 0:02:54]} 9. d4 {[%clk 0:02:48]}  O-O {[%clk 0:02:55]} 10. Nbd2 {[%clk 0:02:46]}  Re8 {[%clk 0:02:51]} 11. Bc2 {[%clk 0:02:39]}  Na5 {[%clk 0:02:44]} 12. Nf1 {[%clk 0:02:31]}  c5 {[%clk 0:02:41]} 13. d5 {[%clk 0:02:30]}  b5 {[%clk 0:02:41]} 14. Ng3 {[%clk 0:02:28]}  Qc7 {[%clk 0:02:39]} 15. b3 {[%clk 0:02:27]}  Nb7 {[%clk 0:02:27]} 16. Be3 {[%clk 0:02:26]}  a5 {[%clk 0:02:27]} 17. Qd2 {[%clk 0:02:24]}  b4 {[%clk 0:02:25]} 18. c4 {[%clk 0:02:23]}  a4 {[%clk 0:02:26]} 19. Kh1 {[%clk 0:02:17]}  Ra6 {[%clk 0:02:24]} 20. Rec1 {[%clk 0:01:56]}  Rea8 {[%clk 0:02:24]} 21. Qd1 {[%clk 0:01:57]}  Qb8 {[%clk 0:02:15]} 22. Nd2 {[%clk 0:01:43]}  R8a7 {[%clk 0:02:13]} 23. Rab1 {[%clk 0:01:43]}  axb3 {[%clk 0:02:13]} 24. axb3 {[%clk 0:01:44]}  Qa8 {[%clk 0:02:12]} 25. f4 {[%clk 0:01:38]}  exf4 {[%clk 0:02:03]} 26. Bxf4 {[%clk 0:01:39]}  Ne8 {[%clk 0:02:03]} 27. Nf3 {[%clk 0:01:38]}  f6 {[%clk 0:02:02]} 28. Be3 {[%clk 0:01:30]}  Ra2 {[%clk 0:01:55]} 29. Ne2 {[%clk 0:01:28]}  Nd8 {[%clk 0:01:54]} 30. Nf4 {[%clk 0:01:24]}  Bh6 {[%clk 0:01:46]} 31. Qe1 {[%clk 0:01:23]}  Nf7 {[%clk 0:01:46]} 32. Nd3 {[%clk 0:01:17]}  Bxe3 {[%clk 0:01:42]} 33. Qxe3 {[%clk 0:01:18]}  R7a3 {[%clk 0:01:41]} 34. Nb2 {[%clk 0:01:04]}  Qd8 {[%clk 0:01:39]} 35. Rf1 {[%clk 0:01:03]}  Qe7 {[%clk 0:01:39]} 36. Rf2 {[%clk 0:00:59]}  f5 {[%clk 0:01:19]} 37. e5 {[%clk 0:00:34]}  dxe5 {[%clk 0:01:08]} 38. Nd3 {[%clk 0:00:35]}  e4 {[%clk 0:01:01]} 39. Nxc5 {[%clk 0:00:35]}  f4 {[%clk 0:00:56]} 40. Qxe4 {[%clk 0:00:21]}  Qxc5 {[%clk 0:00:55]} 41. Rbf1 {[%clk 0:00:22]}  Qe3 {[%clk 0:00:49]} 42. c5 {[%clk 0:00:16]}  Ra1 {[%clk 0:00:37]} 43. Kh2 {[%clk 0:00:05]}  Qxc5 {[%clk 0:00:33]} 44. Qxf4 {[%clk 0:00:05]}  Rxf1 {[%clk 0:00:31]} 45. Rxf1 {[%clk 0:00:06]}  Qd6 {[%clk 0:00:31]} 46. Qxd6 {[%clk 0:00:05]}  Nexd6 {[%clk 0:00:32]} 47. Nd4 {[%clk 0:00:05]}  Ra5 {[%clk 0:00:31]} 48. Nc6 {[%clk 0:00:05]}  Bxc6 {[%clk 0:00:31]} 49. dxc6 {[%clk 0:00:06]}  Rc5 {[%clk 0:00:31]} 50. Bd1 {[%clk 0:00:07]}  Rxc6 {[%clk 0:00:31]} 51. Bf3 {[%clk 0:00:07]}  Rc5 {[%clk 0:00:31]} 52. Rd1 {[%clk 0:00:07]}  Kg7 {[%clk 0:00:28]} 53. Rd4 {[%clk 0:00:08]}  Rb5 {[%clk 0:00:29]} 54. Bd5 {[%clk 0:00:07]}  Nf5 {[%clk 0:00:28]} 55. Rd1 {[%clk 0:00:08]}  Ne3 {[%clk 0:00:28]} 0-1


[Site "https://www.chess.com"]